[Event "*** Titled Tuesday Blitz"]
[Site "Chess.com"]
[Date "2018.12.04"]
[Round "8"]
[White "MFBerna"]
[Black "TregubovP"]
[Result "1/2-1/2"]
[WhiteElo "2374"]
[BlackElo "2526"]
[TimeControl "180+2"]
[EndTime "14:55:34 PST"]
[Termination "Game drawn - insufficient material"]

1. e4 {[%clk 0:03:01.9]} 1... e6 {[%clk 0:02:59.5]} 2. d4 {[%clk 0:03:02.4]}
2... d5 {[%clk 0:03:00.6]} 3. exd5 {[%clk 0:03:04.3]} 3... exd5 {[%clk
0:03:01.2]} 4. Qf3 {[%clk 0:03:05.4]} 4... Nf6 {[%clk 0:02:50.2]} 5. h3 {[%clk
0:03:06.3]} 5... Be6 {[%clk 0:02:41.9]} 6. Bd3 {[%clk 0:03:05.4]} 6... Nc6
{[%clk 0:02:41.3]} 7. c3 {[%clk 0:03:06.5]} 7... Qd7 {[%clk 0:02:42.5]} 8. Ne2
{[%clk 0:03:07.1]} 8... O-O-O {[%clk 0:02:42.3]} 9. Bf4 {[%clk 0:03:08.2]} 9...
Bd6 {[%clk 0:02:43.1]} 10. Nd2 {[%clk 0:03:09.2]} 10... Ne7 {[%clk 0:02:42.6]}
11. O-O-O {[%clk 0:02:59.7]} 11... Bxf4 {[%clk 0:02:31.1]} 12. Nxf4 {[%clk
0:03:00.2]} 12... Bf5 {[%clk 0:02:31.4]} 13. Rhe1 {[%clk 0:02:57.1]} 13... Rhe8
{[%clk 0:02:29.8]} 14. Re2 {[%clk 0:02:23.4]} 14... Ng6 {[%clk 0:02:06.1]} 15.
Nxg6 {[%clk 0:01:48.5]} 15... hxg6 {[%clk 0:02:01.1]} 16. Rde1 {[%clk
0:01:44.4]} 16... Bxd3 {[%clk 0:01:48.7]} 17. Qxd3 {[%clk 0:01:46.3]} 17... Rxe2
{[%clk 0:01:45.8]} 18. Rxe2 {[%clk 0:01:45.6]} 18... Re8 {[%clk 0:01:47.2]} 19.
Re5 {[%clk 0:01:34.8]} 19... c6 {[%clk 0:01:27.8]} 20. Qe3 {[%clk 0:01:30.7]}
20... a6 {[%clk 0:01:17.6]} 21. Nb3 {[%clk 0:01:20.4]} 21... Ne4 {[%clk
0:00:55.1]} 22. Nc5 {[%clk 0:01:06.3]} 22... Qd8 {[%clk 0:00:55.8]} 23. Nxe4
{[%clk 0:01:01.5]} 23... Rxe5 {[%clk 0:00:56]} 24. dxe5 {[%clk 0:00:57.6]} 24...
dxe4 {[%clk 0:00:57.2]} 25. Qxe4 {[%clk 0:00:50.9]} 25... Qa5 {[%clk 0:00:58.2]}
26. e6 {[%clk 0:00:41.5]} 26... fxe6 {[%clk 0:00:36.6]} 27. Qxe6+ {[%clk
0:00:38.3]} 27... Kb8 {[%clk 0:00:37.8]} 28. Qxg6 {[%clk 0:00:32.9]} 28... Qxa2
{[%clk 0:00:37.4]} 29. Qxg7 {[%clk 0:00:28.9]} 29... Qa1+ {[%clk 0:00:38.5]} 30.
Kc2 {[%clk 0:00:29.1]} 30... Qa4+ {[%clk 0:00:39.4]} 31. Kd2 {[%clk 0:00:26.9]}
31... Qf4+ {[%clk 0:00:39.4]} 32. Ke2 {[%clk 0:00:24.4]} 32... Qe4+ {[%clk
0:00:40.6]} 33. Kd2 {[%clk 0:00:22.5]} 33... Qf4+ {[%clk 0:00:41.7]} 34. Ke2
{[%clk 0:00:19.4]} 34... Qe4+ {[%clk 0:00:42.7]} 35. Kd1 {[%clk 0:00:17.3]}
35... Qb1+ {[%clk 0:00:42.2]} 36. Ke2 {[%clk 0:00:16.8]} 36... Qxb2+ {[%clk
0:00:43.3]} 37. Kf3 {[%clk 0:00:17.9]} 37... Qb5 {[%clk 0:00:21.1]} 38. h4
{[%clk 0:00:15.2]} 38... a5 {[%clk 0:00:21.2]} 39. g4 {[%clk 0:00:16.2]} 39...
a4 {[%clk 0:00:21.3]} 40. h5 {[%clk 0:00:17.6]} 40... Qd5+ {[%clk 0:00:18.3]}
41. Kg3 {[%clk 0:00:16.9]} 41... Qd6+ {[%clk 0:00:19.1]} 42. Kg2 {[%clk
0:00:12.2]} 42... a3 {[%clk 0:00:19.9]} 43. h6 {[%clk 0:00:12.3]} 43... Qd5+
{[%clk 0:00:20.2]} 44. f3 {[%clk 0:00:10.6]} 44... a2 {[%clk 0:00:21.1]} 45. h7
{[%clk 0:00:11.8]} 45... a1=Q {[%clk 0:00:19.8]} 46. h8=Q+ {[%clk 0:00:12.7]}
46... Ka7 {[%clk 0:00:21.1]} 47. Qd4+ {[%clk 0:00:13.7]} 47... Qxd4 {[%clk
0:00:22.4]} 48. Qxd4+ {[%clk 0:00:15.5]} 48... Ka6 {[%clk 0:00:21.4]} 49. g5
{[%clk 0:00:15]} 49... Qb1 {[%clk 0:00:22.2]} 50. f4 {[%clk 0:00:14.4]} 50...
Qf5 {[%clk 0:00:20.3]} 51. Kf3 {[%clk 0:00:12.3]} 51... b5 {[%clk 0:00:21]} 52.
Qe4 {[%clk 0:00:12.1]} 52... Qh3+ {[%clk 0:00:22]} 53. Kf2 {[%clk 0:00:11.6]}
53... Qxc3 {[%clk 0:00:23.5]} 54. g6 {[%clk 0:00:12.9]} 54... b4 {[%clk
0:00:24.7]} 55. g7 {[%clk 0:00:12.3]} 55... Qxg7 {[%clk 0:00:25]} 56. Qxc6+
{[%clk 0:00:13.3]} 56... Ka5 {[%clk 0:00:26.6]} 57. f5 {[%clk 0:00:12.2]} 57...
b3 {[%clk 0:00:25.5]} 58. f6 {[%clk 0:00:11.3]} 58... Qg6 {[%clk 0:00:24.3]} 59.
Qd5+ {[%clk 0:00:10.5]} 59... Kb4 {[%clk 0:00:23.5]} 60. f7 {[%clk 0:00:12.4]}
60... Qf6+ {[%clk 0:00:24.7]} 61. Ke2 {[%clk 0:00:13]} 61... b2 {[%clk
0:00:26.2]} 62. Qa2 {[%clk 0:00:06.1]} 62... Qe5+ {[%clk 0:00:19]} 63. Kf3
{[%clk 0:00:06.6]} 63... Qf5+ {[%clk 0:00:19.5]} 64. Ke3 {[%clk 0:00:07.3]}
64... Qe5+ {[%clk 0:00:18.5]} 65. Kf3 {[%clk 0:00:07.8]} 65... Qf5+ {[%clk
0:00:17.9]} 66. Ke3 {[%clk 0:00:09.1]} 66... Kc3 {[%clk 0:00:17.9]} 67. Qa3+
{[%clk 0:00:05.6]} 67... Kc2 {[%clk 0:00:19.1]} 68. f8=Q {[%clk 0:00:06.9]}
68... Qxf8 {[%clk 0:00:19.1]} 69. Qxf8 {[%clk 0:00:08.8]} 69... b1=Q {[%clk
0:00:19.5]} 70. Qf5+ {[%clk 0:00:06.8]} 70... Kb2 {[%clk 0:00:20.3]} 71. Qxb1+
{[%clk 0:00:08.7]} 71... Kxb1 {[%clk 0:00:21]} 1/2-1/2

[Event "*** Titled Tuesday Blitz"]
[Site "Chess.com"]
[Date "2018.12.04"]
[Round "8"]
[White "snowlord"]
[Black "VeraNebolsina"]
[Result "1-0"]
[WhiteElo "2618"]
[BlackElo "2371"]
[TimeControl "180+2"]
[EndTime "14:56:20 PST"]
[Termination "snowlord won by checkmate"]

1. d4 {[%clk 0:02:55.6]} 1... Nf6 {[%clk 0:02:58.7]} 2. c4 {[%clk 0:02:56.6]}
2... g6 {[%clk 0:02:58.9]} 3. Nc3 {[%clk 0:02:56.6]} 3... d5 {[%clk 0:02:58.3]}
4. Nf3 {[%clk 0:02:57]} 4... Bg7 {[%clk 0:02:58.9]} 5. Qb3 {[%clk 0:02:57.2]}
5... dxc4 {[%clk 0:02:58.4]} 6. Qxc4 {[%clk 0:02:58.2]} 6... O-O {[%clk
0:02:59.4]} 7. e4 {[%clk 0:02:59.2]} 7... a6 {[%clk 0:02:59]} 8. e5 {[%clk
0:03:00.5]} 8... b5 {[%clk 0:02:59.7]} 9. Qb3 {[%clk 0:03:02]} 9... Be6 {[%clk
0:02:43.3]} 10. exf6 {[%clk 0:03:02.2]} 10... Bxb3 {[%clk 0:02:42.9]} 11. fxg7
{[%clk 0:03:03.3]} 11... Kxg7 {[%clk 0:02:44.3]} 12. axb3 {[%clk 0:03:04.8]}
12... Nd7 {[%clk 0:02:38.7]} 13. Be2 {[%clk 0:03:04.3]} 13... c5 {[%clk
0:02:37.6]} 14. O-O {[%clk 0:02:58.7]} 14... cxd4 {[%clk 0:02:32.1]} 15. Nxd4
{[%clk 0:03:00.2]} 15... e5 {[%clk 0:02:33.2]} 16. Nc2 {[%clk 0:02:57.2]} 16...
Nc5 {[%clk 0:02:31.1]} 17. Be3 {[%clk 0:02:51.1]} 17... Qc8 {[%clk 0:02:10.1]}
18. Rad1 {[%clk 0:02:42]} 18... f5 {[%clk 0:02:09.5]} 19. Rd5 {[%clk 0:02:38.8]}
19... Nd7 {[%clk 0:02:03.1]} 20. Rfd1 {[%clk 0:02:38.1]} 20... Rf7 {[%clk
0:02:03.1]} 21. f4 {[%clk 0:02:24.7]} 21... exf4 {[%clk 0:01:16]} 22. Bxf4
{[%clk 0:02:24.7]} 22... Nf6 {[%clk 0:01:16.7]} 23. Rd6 {[%clk 0:02:20.6]} 23...
b4 {[%clk 0:01:10.7]} 24. Nxb4 {[%clk 0:02:10.1]} 24... Qc5+ {[%clk 0:01:10.6]}
25. R6d4 {[%clk 0:02:04.8]} 25... Rd8 {[%clk 0:01:07.2]} 26. Nc2 {[%clk
0:02:02.3]} 26... Rfd7 {[%clk 0:01:02.5]} 27. Be3 {[%clk 0:02:02.9]} 27... Qe7
{[%clk 0:00:54.2]} 28. Rxd7 {[%clk 0:02:00.7]} 28... Rxd7 {[%clk 0:00:54.1]} 29.
Rxd7 {[%clk 0:02:01.6]} 29... Nxd7 {[%clk 0:00:51.2]} 30. Bxa6 {[%clk
0:02:00.6]} 30... Qd6 {[%clk 0:00:45.9]} 31. Bd4+ {[%clk 0:01:55.8]} 31... Kh6
{[%clk 0:00:44.4]} 32. Bb5 {[%clk 0:01:54.2]} 32... Nc5 {[%clk 0:00:42.8]} 33.
b4 {[%clk 0:01:52]} 33... Nb3 {[%clk 0:00:42.9]} 34. Be3+ {[%clk 0:01:51.5]}
34... f4 {[%clk 0:00:42.4]} 35. Bf2 {[%clk 0:01:39.5]} 35... Qd2 {[%clk
0:00:43.1]} 36. Ne1 {[%clk 0:01:34.6]} 36... Qxb2 {[%clk 0:00:41]} 37. Ne2
{[%clk 0:01:36]} 37... g5 {[%clk 0:00:38.1]} 38. h4 {[%clk 0:01:34.1]} 38... Nd2
{[%clk 0:00:32.5]} 39. hxg5+ {[%clk 0:01:34.2]} 39... Kxg5 {[%clk 0:00:33.1]}
40. Nxf4 {[%clk 0:01:33]} 40... Qxb4 {[%clk 0:00:24.8]} 41. Nh3+ {[%clk
0:01:33.8]} 41... Kf6 {[%clk 0:00:19.4]} 42. Be2 {[%clk 0:01:35]} 42... Ne4
{[%clk 0:00:19.5]} 43. Bh4+ {[%clk 0:01:34.1]} 43... Kg7 {[%clk 0:00:19.1]} 44.
Nf3 {[%clk 0:01:32.1]} 44... Qb2 {[%clk 0:00:17.6]} 45. Bd3 {[%clk 0:01:24.4]}
45... Nc3 {[%clk 0:00:14.2]} 46. Nf2 {[%clk 0:01:17.6]} 46... Qa1+ {[%clk
0:00:13.3]} 47. Kh2 {[%clk 0:01:17]} 47... Qa7 {[%clk 0:00:13.7]} 48. Bg3 {[%clk
0:01:12]} 48... Kf8 {[%clk 0:00:10.2]} 49. Ne4 {[%clk 0:01:09.9]} 49... Nxe4
{[%clk 0:00:10.4]} 50. Bxe4 {[%clk 0:01:09.8]} 50... Qe7 {[%clk 0:00:11.9]} 51.
Bc2 {[%clk 0:01:08.3]} 51... Qg7 {[%clk 0:00:12.9]} 52. Bf5 {[%clk 0:01:04.3]}
52... Qh6+ {[%clk 0:00:13.8]} 53. Bh3 {[%clk 0:01:06.2]} 53... Qc1 {[%clk
0:00:13.6]} 54. Nh4 {[%clk 0:01:08.1]} 54... Kg8 {[%clk 0:00:13.6]} 55. Nf5
{[%clk 0:01:10]} 55... Kf8 {[%clk 0:00:12.3]} 56. Nd4 {[%clk 0:01:02.7]} 56...
Qh6 {[%clk 0:00:12.1]} 57. Ne6+ {[%clk 0:01:02.8]} 57... Ke8 {[%clk 0:00:12.1]}
58. Be5 {[%clk 0:01:00.7]} 58... Qc1 {[%clk 0:00:12.6]} 59. Bf4 {[%clk
0:00:59.2]} 59... Qe1 {[%clk 0:00:13]} 60. Ng7+ {[%clk 0:00:58]} 60... Kf7
{[%clk 0:00:13.6]} 61. Nf5 {[%clk 0:00:59.7]} 61... Kg8 {[%clk 0:00:14.8]} 62.
Nh6+ {[%clk 0:00:53.4]} 62... Kf8 {[%clk 0:00:15.3]} 63. Ng4 {[%clk 0:00:55.3]}
63... Qa1 {[%clk 0:00:14]} 64. Kg3 {[%clk 0:00:54.7]} 64... Qc3+ {[%clk
0:00:14.4]} 65. Kh4 {[%clk 0:00:55.3]} 65... Qe1+ {[%clk 0:00:14.2]} 66. Kh5
{[%clk 0:00:47.3]} 66... Qe8+ {[%clk 0:00:15.1]} 67. Kh4 {[%clk 0:00:48.8]}
67... Qe1+ {[%clk 0:00:16]} 68. g3 {[%clk 0:00:50.2]} 68... Qe7+ {[%clk
0:00:16.1]} 69. Bg5 {[%clk 0:00:51.2]} 69... Qf7 {[%clk 0:00:16.2]} 70. Ne5
{[%clk 0:00:45.5]} 70... Qd5 {[%clk 0:00:17.1]} 71. Nd7+ {[%clk 0:00:41.9]}
71... Kg7 {[%clk 0:00:16.1]} 72. Nf6 {[%clk 0:00:37.2]} 72... Qh1 {[%clk
0:00:15.9]} 73. Nh5+ {[%clk 0:00:37]} 73... Kg6 {[%clk 0:00:15.3]} 74. Nf4+
{[%clk 0:00:38.1]} 74... Kg7 {[%clk 0:00:16.3]} 75. Be7 {[%clk 0:00:26.8]} 75...
Kh6 {[%clk 0:00:15.9]} 76. Bf8# {[%clk 0:00:24.4]} 1-0

[Event "*** Titled Tuesday Blitz"]
[Site "Chess.com"]
[Date "2018.12.04"]
[Round "8"]
[White "Alexander_Donchenko"]
[Black "Alopekos"]
[Result "1-0"]
[WhiteElo "2689"]
[BlackElo "2493"]
[TimeControl "180+2"]
[EndTime "14:56:24 PST"]
[Termination "Alexander_Donchenko won by resignation"]

1. Nf3 {[%clk 0:03:01.9]} 1... Nf6 {[%clk 0:02:58.5]} 2. g3 {[%clk 0:03:03.1]}
2... d5 {[%clk 0:02:58.9]} 3. Bg2 {[%clk 0:03:04.3]} 3... e6 {[%clk 0:03:00.5]}
4. O-O {[%clk 0:03:05.1]} 4... Be7 {[%clk 0:03:02.1]} 5. c4 {[%clk 0:03:06.5]}
5... O-O {[%clk 0:03:03.5]} 6. d4 {[%clk 0:03:08.2]} 6... dxc4 {[%clk
0:03:04.8]} 7. Ne5 {[%clk 0:03:09.5]} 7... c5 {[%clk 0:03:05.4]} 8. dxc5 {[%clk
0:03:09.4]} 8... Qc7 {[%clk 0:03:06.9]} 9. Nxc4 {[%clk 0:03:10.7]} 9... Qxc5
{[%clk 0:03:08.5]} 10. b3 {[%clk 0:03:12]} 10... Rd8 {[%clk 0:03:09.3]} 11. Nbd2
{[%clk 0:03:12.6]} 11... Nc6 {[%clk 0:03:10.4]} 12. Bb2 {[%clk 0:03:12]} 12...
Bd7 {[%clk 0:03:01.8]} 13. Rc1 {[%clk 0:03:11.5]} 13... Qb5 {[%clk 0:03:03.1]}
14. Qc2 {[%clk 0:02:56.4]} 14... Rac8 {[%clk 0:03:00]} 15. Qb1 {[%clk
0:02:57.3]} 15... Qa6 {[%clk 0:02:55.3]} 16. Rfd1 {[%clk 0:02:52.3]} 16... Be8
{[%clk 0:02:48.7]} 17. a3 {[%clk 0:02:47.2]} 17... b5 {[%clk 0:02:33.5]} 18. Ne5
{[%clk 0:02:21]} 18... Nxe5 {[%clk 0:02:33.4]} 19. Rxc8 {[%clk 0:02:16.7]} 19...
Rxc8 {[%clk 0:02:26.3]} 20. Bxe5 {[%clk 0:02:17.6]} 20... Qxa3 {[%clk
0:02:27.7]} 21. Nf3 {[%clk 0:01:55.7]} 21... h6 {[%clk 0:02:21.1]} 22. Nd4
{[%clk 0:01:44.9]} 22... Qc5 {[%clk 0:02:19.8]} 23. Bf4 {[%clk 0:01:40.2]} 23...
Qb4 {[%clk 0:01:30.1]} 24. Nc2 {[%clk 0:01:15.8]} 24... Qc5 {[%clk 0:01:24.6]}
25. Nd4 {[%clk 0:01:16]} 25... Nd5 {[%clk 0:00:53.9]} 26. Bxd5 {[%clk
0:01:04.2]} 26... Qxd5 {[%clk 0:00:55.8]} 27. Be3 {[%clk 0:00:59.4]} 27... Rd8
{[%clk 0:00:26.1]} 28. Rc1 {[%clk 0:00:59.9]} 28... Ba3 {[%clk 0:00:26.6]} 29.
Rc7 {[%clk 0:00:57.5]} 29... Bd6 {[%clk 0:00:22.7]} 30. Rc1 {[%clk 0:00:49.8]}
30... Bc5 {[%clk 0:00:12.1]} 31. Rxc5 {[%clk 0:00:50.2]} 31... Qxc5 {[%clk
0:00:11.6]} 32. Nxe6 {[%clk 0:00:51.6]} 32... Qd5 {[%clk 0:00:08.5]} 33. Nxd8
{[%clk 0:00:52.2]} 33... Qxd8 {[%clk 0:00:10]} 34. Bxa7 {[%clk 0:00:53.1]} 34...
Bc6 {[%clk 0:00:10.9]} 35. b4 {[%clk 0:00:46.7]} 35... Qd5 {[%clk 0:00:11.6]}
36. f3 {[%clk 0:00:47.9]} 36... Qc4 {[%clk 0:00:12.7]} 37. Kf2 {[%clk
0:00:47.2]} 37... Bd5 {[%clk 0:00:13.8]} 38. Bc5 {[%clk 0:00:46.8]} 38... Be6
{[%clk 0:00:14.5]} 39. Qa1 {[%clk 0:00:44.9]} 39... Kh7 {[%clk 0:00:13.3]} 40.
Qe5 {[%clk 0:00:44.1]} 40... Qd5 {[%clk 0:00:12.5]} 41. Qe3 {[%clk 0:00:43.3]}
41... Qc4 {[%clk 0:00:05.2]} 42. g4 {[%clk 0:00:41.9]} 42... Qd5 {[%clk
0:00:06.5]} 43. h4 {[%clk 0:00:41.7]} 43... Kg8 {[%clk 0:00:06.7]} 44. h5 {[%clk
0:00:40.8]} 44... Qb3 {[%clk 0:00:06.7]} 45. Qf4 {[%clk 0:00:40.3]} 45... Qc4
{[%clk 0:00:07]} 46. Qe5 {[%clk 0:00:40.8]} 46... Kh7 {[%clk 0:00:04.9]} 47. Bd4
{[%clk 0:00:39.6]} 47... f6 {[%clk 0:00:05.8]} 48. Qe4+ {[%clk 0:00:40.8]} 48...
Kg8 {[%clk 0:00:06.7]} 49. Qa8+ {[%clk 0:00:39.8]} 49... Kh7 {[%clk 0:00:06.7]}
50. Bc5 {[%clk 0:00:40.7]} 50... Qd5 {[%clk 0:00:06]} 51. Qb8 {[%clk 0:00:39.8]}
51... Qd7 {[%clk 0:00:06.2]} 52. Qf4 {[%clk 0:00:37.5]} 52... Bc4 {[%clk
0:00:06.5]} 53. Qe4+ {[%clk 0:00:29.5]} 53... Kg8 {[%clk 0:00:05.6]} 54. Qa8+
{[%clk 0:00:18.1]} 54... Kh7 {[%clk 0:00:06.3]} 55. Qe4+ {[%clk 0:00:19.5]}
55... Kg8 {[%clk 0:00:07.5]} 56. Qc2 {[%clk 0:00:18]} 56... Qc7 {[%clk
0:00:04.2]} 57. Kg2 {[%clk 0:00:18.8]} 57... Qe5 {[%clk 0:00:04.6]} 58. e4
{[%clk 0:00:17.8]} 58... Qe6 {[%clk 0:00:03.4]} 59. Qd2 {[%clk 0:00:17.5]} 59...
Kf7 {[%clk 0:00:03.3]} 60. Kg3 {[%clk 0:00:17.6]} 60... Kg8 {[%clk 0:00:03.5]}
61. Qd8+ {[%clk 0:00:17.3]} 61... Kh7 {[%clk 0:00:04.4]} 62. Qd2 {[%clk
0:00:18]} 62... Qe5+ {[%clk 0:00:05.6]} 63. Kg2 {[%clk 0:00:19.3]} 63... Qe6
{[%clk 0:00:04.8]} 64. Bd6 {[%clk 0:00:20]} 64... Qd7 {[%clk 0:00:04.6]} 65. Qd4
{[%clk 0:00:20.3]} 65... Kg8 {[%clk 0:00:04.4]} 66. Kg3 {[%clk 0:00:21.4]} 66...
Kf7 {[%clk 0:00:05.2]} 67. e5 {[%clk 0:00:21.9]} 67... fxe5 {[%clk 0:00:05.3]}
68. Qxe5 {[%clk 0:00:23.8]} 68... Qe6 {[%clk 0:00:05.6]} 69. Qf4+ {[%clk
0:00:24.6]} 69... Qf6 {[%clk 0:00:06.5]} 70. Qd2 {[%clk 0:00:25.3]} 70... Qe6
{[%clk 0:00:04.3]} 71. Bc5 {[%clk 0:00:22.3]} 71... Qd5 {[%clk 0:00:03.5]} 72.
Qf4+ {[%clk 0:00:23]} 72... Kg8 {[%clk 0:00:04.7]} 73. Bd4 {[%clk 0:00:23.7]}
73... Qf7 {[%clk 0:00:05.2]} 74. Qe5 {[%clk 0:00:24.3]} 74... Bd5 {[%clk
0:00:05]} 75. f4 {[%clk 0:00:24.8]} 75... Bc4 {[%clk 0:00:06.3]} 76. g5 {[%clk
0:00:23.8]} 76... hxg5 {[%clk 0:00:07.2]} 77. fxg5 {[%clk 0:00:25.7]} 77... Bd5
{[%clk 0:00:05.6]} 78. Kh4 {[%clk 0:00:25.8]} 78... Bc4 {[%clk 0:00:02.7]} 79.
g6 {[%clk 0:00:25.8]} 79... Qf8 {[%clk 0:00:02.6]} 80. Kg3 {[%clk 0:00:22.8]}
80... Qf6 {[%clk 0:00:02.1]} 81. Qxf6 {[%clk 0:00:20.4]} 81... gxf6 {[%clk
0:00:04]} 82. Bxf6 {[%clk 0:00:21.9]} 1-0

[Event "*** Titled Tuesday Blitz"]
[Site "Chess.com"]
[Date "2018.12.04"]
[Round "8"]
[White "afgano29"]
[Black "wadsy27"]
[Result "0-1"]
[WhiteElo "2612"]
[BlackElo "2438"]
[TimeControl "180+2"]
[EndTime "14:56:42 PST"]
[Termination "wadsy27 won by resignation"]

1. d4 {[%clk 0:03:01.9]} 1... Nf6 {[%clk 0:03:00.2]} 2. c4 {[%clk 0:03:03.1]}
2... c5 {[%clk 0:03:00.8]} 3. d5 {[%clk 0:03:03.5]} 3... e6 {[%clk 0:02:59.9]}
4. Nc3 {[%clk 0:03:04.3]} 4... exd5 {[%clk 0:03:01]} 5. cxd5 {[%clk 0:03:06.2]}
5... d6 {[%clk 0:03:02.2]} 6. e4 {[%clk 0:03:07.7]} 6... g6 {[%clk 0:03:03.5]}
7. f4 {[%clk 0:03:09.1]} 7... Bg7 {[%clk 0:03:04.8]} 8. Bb5+ {[%clk 0:03:10.2]}
8... Nfd7 {[%clk 0:03:06.2]} 9. Nf3 {[%clk 0:03:11.7]} 9... O-O {[%clk
0:03:07.2]} 10. O-O {[%clk 0:03:12.4]} 10... a6 {[%clk 0:03:06.1]} 11. Bd3
{[%clk 0:03:13.8]} 11... b5 {[%clk 0:03:07.1]} 12. Kh1 {[%clk 0:03:15.3]} 12...
Nb6 {[%clk 0:02:55.7]} 13. f5 {[%clk 0:03:15.1]} 13... b4 {[%clk 0:02:51.7]} 14.
Ne2 {[%clk 0:03:15.5]} 14... N8d7 {[%clk 0:02:52.3]} 15. Bg5 {[%clk 0:03:14.5]}
15... f6 {[%clk 0:02:42.2]} 16. Bh4 {[%clk 0:03:11]} 16... g5 {[%clk 0:02:37.8]}
17. Bf2 {[%clk 0:03:11.3]} 17... c4 {[%clk 0:02:34.1]} 18. Bc2 {[%clk
0:03:11.6]} 18... a5 {[%clk 0:02:34.9]} 19. Ned4 {[%clk 0:03:12.6]} 19... Ba6
{[%clk 0:02:14.8]} 20. Ne6 {[%clk 0:03:12.8]} 20... Qc8 {[%clk 0:02:15.7]} 21.
Re1 {[%clk 0:03:09.1]} 21... Bb5 {[%clk 0:02:02]} 22. Nfd4 {[%clk 0:03:09.6]}
22... Ba6 {[%clk 0:01:55.5]} 23. Re3 {[%clk 0:03:10.6]} 23... Ne5 {[%clk
0:01:49.9]} 24. Rh3 {[%clk 0:03:11.4]} 24... Rf7 {[%clk 0:01:41.1]} 25. Qh5
{[%clk 0:03:01.5]} 25... Bh8 {[%clk 0:01:41.6]} 26. Rd1 {[%clk 0:03:00.9]} 26...
Nbd7 {[%clk 0:01:36.6]} 27. Bg3 {[%clk 0:02:43.3]} 27... Rb8 {[%clk 0:01:30.8]}
28. Ba4 {[%clk 0:02:35.9]} 28... Nc5 {[%clk 0:01:25]} 29. Bc6 {[%clk 0:02:30]}
29... Ncd3 {[%clk 0:01:21.4]} 30. b3 {[%clk 0:02:21.7]} 30... c3 {[%clk
0:01:22.2]} 31. Bxe5 {[%clk 0:02:15.8]} 31... dxe5 {[%clk 0:01:15.8]} 32. Nc2
{[%clk 0:02:12.4]} 32... Nf2+ {[%clk 0:01:11.6]} 33. Kg1 {[%clk 0:02:12.6]}
33... Nxh3+ {[%clk 0:01:12.5]} 34. Qxh3 {[%clk 0:02:11.8]} 34... Bb7 {[%clk
0:01:13.6]} 35. Bxb7 {[%clk 0:02:08.9]} 35... Qxb7 {[%clk 0:01:14.1]} 36. Qe3
{[%clk 0:02:09.9]} 36... Bg7 {[%clk 0:01:08.3]} 37. h4 {[%clk 0:02:03.5]} 37...
gxh4 {[%clk 0:00:58.3]} 38. Kf2 {[%clk 0:02:03.5]} 38... Bf8 {[%clk 0:00:48.6]}
39. Rh1 {[%clk 0:02:02.7]} 39... Qa7 {[%clk 0:00:45.1]} 40. Rxh4 {[%clk
0:02:02.2]} 40... Qxe3+ {[%clk 0:00:45.1]} 41. Kxe3 {[%clk 0:02:03.3]} 41... Rc8
{[%clk 0:00:43.3]} 42. Kd3 {[%clk 0:02:03.2]} 42... Bc5 {[%clk 0:00:34]} 43. Rh1
{[%clk 0:02:03.5]} 43... Kh8 {[%clk 0:00:27]} 44. g4 {[%clk 0:02:03.7]} 44...
Bd6 {[%clk 0:00:24.5]} 45. Ne3 {[%clk 0:01:57.6]} 45... Rg8 {[%clk 0:00:21.9]}
46. Rh5 {[%clk 0:01:54]} 46... Rd7 {[%clk 0:00:19.2]} 47. Rh6 {[%clk 0:01:43.8]}
47... Be7 {[%clk 0:00:18.6]} 48. Nc4 {[%clk 0:01:26.2]} 48... a4 {[%clk
0:00:14.6]} 49. g5 {[%clk 0:01:26.1]} 49... fxg5 {[%clk 0:00:13.1]} 50. Nxe5
{[%clk 0:01:26.3]} 50... Bf8 {[%clk 0:00:07.3]} 51. Rh1 {[%clk 0:01:15.9]} 51...
axb3 {[%clk 0:00:07.3]} 52. axb3 {[%clk 0:01:15.1]} 52... Ra7 {[%clk 0:00:05.9]}
53. Nxf8 {[%clk 0:01:05.8]} 53... Rxf8 {[%clk 0:00:05.8]} 54. Ng6+ {[%clk
0:01:06.8]} 54... Kg8 {[%clk 0:00:07.2]} 55. Nxf8 {[%clk 0:01:08]} 55... Kxf8
{[%clk 0:00:08.7]} 56. e5 {[%clk 0:01:07.2]} 56... Ra2 {[%clk 0:00:09.5]} 57. d6
{[%clk 0:01:06.3]} 57... Rd2+ {[%clk 0:00:10.7]} 58. Kc4 {[%clk 0:01:05.7]}
58... c2 {[%clk 0:00:11.1]} 59. Rc1 {[%clk 0:01:06.4]} 59... g4 {[%clk
0:00:11.9]} 60. f6 {[%clk 0:00:49.4]} 60... Kf7 {[%clk 0:00:07]} 61. Kxb4 {[%clk
0:00:40.3]} 61... g3 {[%clk 0:00:07.2]} 62. Kc3 {[%clk 0:00:41.7]} 62... Rd5
{[%clk 0:00:08.2]} 63. b4 {[%clk 0:00:33.4]} 63... Rxe5 {[%clk 0:00:07.2]} 64.
Rxc2 {[%clk 0:00:32.7]} 64... h5 {[%clk 0:00:06.8]} 65. Kd4 {[%clk 0:00:32.1]}
65... Re8 {[%clk 0:00:07.3]} 66. Kd5 {[%clk 0:00:30.6]} 66... Kxf6 {[%clk
0:00:07.7]} 67. d7 {[%clk 0:00:31.6]} 67... Rd8 {[%clk 0:00:08.9]} 68. Kd6
{[%clk 0:00:32.4]} 68... h4 {[%clk 0:00:09.9]} 69. Rg2 {[%clk 0:00:20.4]} 69...
Kf5 {[%clk 0:00:07.1]} 70. b5 {[%clk 0:00:21.7]} 70... Kg4 {[%clk 0:00:07.3]}
71. b6 {[%clk 0:00:22.1]} 71... h3 {[%clk 0:00:08.6]} 72. Rb2 {[%clk 0:00:21.2]}
72... h2 {[%clk 0:00:09.3]} 73. Rb4+ {[%clk 0:00:14.9]} 73... Kh3 {[%clk
0:00:07.9]} 74. Rb5 {[%clk 0:00:15.9]} 74... h1=Q {[%clk 0:00:07.3]} 75. Rh5+
{[%clk 0:00:16.8]} 75... Kg2 {[%clk 0:00:08.7]} 76. Rxh1 {[%clk 0:00:17.7]}
76... Kxh1 {[%clk 0:00:10.1]} 77. b7 {[%clk 0:00:17]} 77... g2 {[%clk
0:00:10.5]} 78. Kc7 {[%clk 0:00:18.3]} 78... g1=Q {[%clk 0:00:09.7]} 79. Kxd8
{[%clk 0:00:19.1]} 79... Qb6+ {[%clk 0:00:11.3]} 80. Kc8 {[%clk 0:00:20.2]}
80... Qc6+ {[%clk 0:00:12.3]} 81. Kb8 {[%clk 0:00:20.9]} 81... Qxd7 {[%clk
0:00:13.2]} 82. Ka7 {[%clk 0:00:22.8]} 82... Qa4+ {[%clk 0:00:14.1]} 83. Kb8
{[%clk 0:00:23.9]} 83... Kg2 {[%clk 0:00:14]} 84. Kc7 {[%clk 0:00:25.8]} 84...
Qc4+ {[%clk 0:00:14.7]} 85. Kb6 {[%clk 0:00:26.6]} 85... Qd4+ {[%clk 0:00:08.7]}
86. Kc7 {[%clk 0:00:26.3]} 86... Qc5+ {[%clk 0:00:09.7]} 87. Kd7 {[%clk
0:00:27.5]} 87... Qb6 {[%clk 0:00:10.3]} 88. Kc8 {[%clk 0:00:28.6]} 88... Qc6+
{[%clk 0:00:11.2]} 0-1